bitfinex/quotes_ETHUSD_20260302
["timestamp","ask_amount","ask_price","bid_price","bid_amount"]
[1772419661535,0.00153886,1959.0,1958.7,5.35388612]
[1772419662858,0.00153886,1959.0,1958.8,5.35388612]
[1772419663672,0.00153886,1959.0,1958.8,6.63017292]
[1772419663845,0.00153886,1959.0,1958.8,5.35388612]
[1772419664734,0.00153886,1959.0,1958.8,6.63017738]
[1772419664939,0.00153886,1959.0,1958.9,5.35388612]
[1772419667857,0.00153886,1959.0,1958.8,5.51674126]
[1772419668057,5.54919883,1959.0,1958.5,0.0011]
[1772419668663,5.54919883,1959.0,1958.5,6.7943239]
[1772419668862,5.54919883,1959.0,1958.5,5.51784126]
[1772419669070,0.00153886,1959.0,1958.5,6.7943107]
[1772419669572,5.54865997,1959.7,1959.0,5.51674126]
[1772419669774,0.001,1959.7,1959.5,1.27583567]
[1772419670366,0.001,1959.7,1959.5,6.79257693]
[1772419670538,0.001,1959.7,1959.5,5.93345836]
[1772419670950,0.00153886,1960.0,1959.5,5.93345836]
[1772419671149,6.82471208,1960.0,1959.5,5.93345836]
[1772419672579,5.54919883,1960.0,1959.6,5.51674126]
[1772419672992,6.8247123,1960.0,1959.6,5.51674126]
[1772419673192,6.8247123,1960.0,1959.4,8.56164027]
[1772419673478,6.8247123,1960.0,1959.5,5.51674126]
[1772419673648,6.8247123,1960.0,1959.5,5.93345836]
[1772419674459,6.8247123,1960.0,1959.5,5.51674126]
[1772419674659,6.8247123,1960.0,1959.3,7.20937866]
[1772419675488,6.8247123,1960.0,1959.3,0.4167171]
[1772419675772,6.8247123,1960.0,1959.2,8.56272957]
[1772419675773,5.54765997,1959.9,1959.2,7.28674126]
[1772419675946,5.54765997,1959.7,1959.2,7.28674126]
[1772419676348,5.54765997,1959.7,1958.9,8.98063464]
[1772419676565,5.54765997,1959.5,1959.0,5.51674126]
[1772419677273,1.27568775,1959.8,1959.4,5.51674126]
[1772419677475,5.54765997,1959.8,1959.5,0.4167171]
[1772419678757,5.54765997,1959.8,1959.3,0.4167171]
[1772419678758,6.823313,1959.8,1959.3,0.4167171]
[1772419678973,6.823313,1959.8,1959.2,8.56375842]
[1772419680277,6.823313,1959.8,1959.3,0.4167171]
[1772419680668,6.823313,1959.8,1959.3,5.93345836]
[1772419680872,8.865313,1959.8,1959.4,5.51674126]
[1772419681271,5.54765997,1959.7,1959.3,0.4167171]
[1772419681655,5.54765997,1959.7,1959.3,5.93345836]
[1772419682484,5.54765997,1959.7,1959.1,8.98251881]
[1772419682850,6.82342977,1959.7,1959.1,3.46577755]
[1772419683053,6.82342977,1959.7,1959.2,5.51674126]
[1772419683671,6.82342977,1959.7,1959.3,0.4167171]
[1772419683854,6.82337102,1959.7,1959.3,5.93345836]
[1772419684481,6.82337102,1959.7,1959.3,5.51674126]
[1772419684880,6.82337102,1959.7,1958.9,6.79291705]
[1772419685086,6.82337102,1959.7,1958.9,5.51674126]
[1772419685259,6.82337102,1959.7,1958.8,1.775]
[1772419685584,2.045,1959.6,1959.0,5.51674126]
[1772419685786,8.86837102,1959.7,1959.0,5.51674126]
[1772419686271,3.32071105,1959.7,1959.0,5.51674126]
[1772419686470,5.54765997,1959.6,1959.0,5.51674126]
[1772419687387,6.82337102,1959.7,1959.0,5.51674126]
[1772419687582,2.046,1959.6,1959.0,5.51674126]
[1772419687780,5.54765997,1959.5,1959.0,5.51674126]
[1772419688176,5.54765997,1959.5,1958.8,6.79299115]
[1772419689361,6.82356075,1959.4,1958.8,6.79299115]
[1772419690387,6.82356075,1959.4,1959.1,0.001]
[1772419691267,0.002,1959.6,1959.2,5.51674126]
[1772419691466,0.001,1959.9,1959.5,5.51674126]
[1772419691801,2.05,1960.3,1959.7,5.53742445]
[1772419691802,0.002,1960.3,1959.7,5.53742445]
[1772419692000,0.34909984,1960.5,1960.3,5.53742445]
[1772419692214,1.68653886,1961.0,1960.3,5.53742445]
[1772419692364,0.00153886,1961.0,1960.3,5.53742445]
[1772419692697,5.08217553,1961.3,1960.6,5.53742445]
[1772419692861,5.08217553,1961.3,1960.2,5.94612372]
[1772419692862,5.08217553,1961.2,1960.3,5.53742445]
[1772419693282,5.08217553,1961.2,1960.5,5.53742445]
[1772419693497,6.35690898,1961.2,1960.5,5.53742445]
[1772419694018,5.08217553,1961.5,1960.8,5.53742445]
[1772419694305,6.35671489,1961.5,1960.8,5.53742445]
[1772419695617,5.08217553,1961.8,1961.1,5.53742445]
[1772419695761,5.08217553,1961.8,1961.0,1.778]
[1772419695964,5.08217553,1961.8,1961.0,7.31542445]
[1772419696586,1.27427863,1961.9,1961.3,5.53742445]
[1772419696789,6.35795674,1962.0,1961.3,5.53742445]
[1772419696985,5.53061714,1961.8,1960.9,5.53742445]
[1772419697366,5.53061714,1961.6,1960.9,5.53742445]
[1772419697577,5.53061714,1961.6,1960.8,6.42762878]
[1772419698118,5.53061714,1961.6,1960.7,1.777]
[1772419698408,5.53061714,1961.6,1960.7,5.1526841]
[1772419698621,5.53061714,1961.4,1960.3,8.20495804]
[1772419698793,5.53061714,1961.2,1960.3,8.20495804]
[1772419698990,5.53061714,1961.2,1960.3,1.27531308]
[1772419699208,5.53061714,1961.2,1960.1,6.42809841]
[1772419699417,1.27479475,1961.1,1960.1,6.42809841]
[1772419699609,5.53061714,1961.0,1960.1,8.20512296]
[1772419700011,7.57661714,1960.9,1960.1,8.20512296]
[1772419700206,7.57661714,1960.9,1960.2,5.1526841]
[1772419702429,6.80560694,1960.8,1960.2,5.1526841]
[1772419703598,6.80560694,1960.8,1960.0,0.00153886]
[1772419704038,6.80560694,1960.8,1960.3,0.001]
[1772419704214,6.80560694,1960.8,1960.0,5.15422296]
[1772419704411,6.80560694,1960.8,1960.0,0.00153886]
[1772419704644,6.80560694,1960.8,1960.2,0.001]
[1772419705736,1.27471423,1961.3,1960.6,5.1526841]
[1772419706030,6.80533137,1961.3,1960.6,5.1526841]
[1772419706226,6.80533137,1961.3,1960.3,5.1526841]
[1772419706730,6.80533137,1961.3,1960.4,6.42793404]
[1772419706931,2.048,1961.2,1960.4,6.42793404]
[1772419707130,7.57861714,1961.2,1960.4,6.42793404]
[1772419707527,1.2746439,1961.4,1960.7,5.1526841]
[1772419708337,8.85521034,1961.5,1960.7,6.9276841]
[1772419708533,3.3245932,1961.5,1960.8,5.1526841]
[1772419708747,5.53261714,1961.5,1960.7,8.20269009]
[1772419708902,5.53261714,1961.5,1960.7,6.9276841]
[1772419709103,5.53261714,1961.5,1960.7,1.775]
[1772419709413,5.53261714,1961.5,1960.6,6.42776949]
[1772419710117,5.53261714,1961.5,1960.5,3.05013919]
[1772419710524,5.53261714,1961.5,1960.5,8.20282329]
[1772419710726,5.53061714,1961.3,1960.5,1.775]
[1772419710920,5.53061714,1961.3,1960.5,8.20285277]
[1772419711128,7.57861714,1961.2,1960.5,6.9276841]
[1772419711327,5.53061714,1961.1,1960.5,6.9276841]
[1772419711834,5.53061714,1961.1,1960.5,1.775]
[1772419712212,5.53061714,1961.1,1960.3,6.4279554]
[1772419713012,5.53061714,1961.2,1960.3,6.4279554]
[1772419713214,5.53061714,1961.1,1960.3,6.4279554]
[1772419715239,1.27485976,1961.0,1960.3,6.4279554]
[1772419718121,1.27485976,1961.0,1960.3,8.2059554]
[1772419718323,1.27485976,1961.0,1960.4,5.1526841]
[1772419718517,1.27485976,1961.0,1960.4,5.1536841]
[1772419718722,1.27685976,1961.0,1960.4,5.1536841]
[1772419718919,1.27685976,1961.0,1960.5,5.1526841]
[1772419718920,0.002,1961.0,1960.5,5.1526841]
[1772419719734,0.002,1961.0,1960.6,6.42780396]
[1772419720611,0.002,1961.0,1960.6,5.1526841]
[1772419720842,5.53261714,1961.0,1960.4,6.42890845]
[1772419721943,1.27687363,1961.0,1960.4,6.42890845]
[1772419723143,1.27686708,1961.0,1960.4,6.42890845]
[1772419723444,0.002,1961.0,1960.4,6.42890845]
[1772419723758,1.276871,1961.0,1960.4,6.42890845]
[1772419724411,0.002,1961.0,1960.4,6.42890845]
[1772419724841,5.53261714,1961.0,1960.3,3.05330652]
[1772419725224,5.53261714,1961.0,1960.3,1.778]
[1772419725539,5.53261714,1961.0,1960.3,6.9306841]
[1772419725944,5.53061714,1960.9,1960.3,6.9306841]
[1772419726154,5.53061714,1960.9,1960.2,0.001]
[1772419726452,5.53061714,1960.8,1960.0,0.00253886]
[1772419726615,5.53061714,1960.6,1960.0,0.00253886]
[1772419728951,6.59670304,1960.9,1960.0,6.67704696]
[1772419729150,7.36777827,1960.8,1960.0,6.67704696]
[1772419729444,5.32177827,1960.7,1960.0,6.67704696]
[1772419730825,6.59689359,1960.7,1960.0,6.67704696]
[1772419731714,6.59689359,1960.7,1960.0,0.00253886]
[1772419732749,6.59689359,1960.7,1960.1,0.001]
[1772419735149,3.32511532,1960.7,1960.1,5.3999979]
[1772419735318,8.64689359,1960.7,1960.1,5.3999979]
[1772419736324,5.32177827,1960.6,1960.1,0.001]
[1772419738156,2.052,1960.8,1960.1,5.3999979]
[1772419738454,5.32177827,1960.7,1960.1,0.001]
[1772419738833,2.052,1960.6,1960.1,0.001]
[1772419739032,5.32177827,1960.5,1960.1,0.001]
[1772419740337,3.32724994,1960.4,1960.1,0.001]
[1772419740671,5.32177827,1960.3,1960.1,0.001]
[1772419740963,3.32724994,1960.4,1960.1,0.001]
[1772419741146,2.054,1960.5,1960.1,5.3999979]
[1772419744885,6.59702821,1960.4,1960.1,0.001]
[1772419746562,6.59702821,1960.4,1960.2,0.001]
[1772419747038,6.59902821,1960.4,1960.2,0.001]
[1772419747679,6.59902821,1960.4,1960.1,0.001]
[1772419748957,2.065,1960.3,1960.1,0.001]
[1772419750442,2.067,1960.3,1960.1,0.001]
[1772419750843,3.34236978,1960.3,1960.1,0.001]
[1772419751942,2.067,1960.3,1960.1,0.001]
[1772419752373,3.3423153,1960.3,1960.1,0.001]
[1772419753273,8.61204063,1960.3,1960.1,0.001]
[1772419754275,1.2753153,1960.3,1960.1,5.1640705]
[1772419754641,6.54504063,1960.3,1960.1,0.001]
[1772419755971,6.54504885,1960.3,1960.1,0.001]
[1772419757841,2.078,1960.2,1960.1,0.001]
[1772419758047,7.44365798,1960.2,1960.1,0.001]
[1772419759994,5.36565798,1960.1,1960.0,0.00253886]
[1772419760650,5.36565798,1960.1,1959.8,0.001]
[1772419760952,5.36565798,1959.9,1959.8,0.001]
[1772419761452,5.36565798,1959.9,1959.1,6.34222189]
[1772419761645,5.36565798,1959.7,1959.1,6.34222189]
[1772419761850,2.085,1959.6,1959.2,5.06512622]
[1772419762325,3.36080543,1959.6,1959.2,5.06512622]
[1772419764183,5.36565798,1959.5,1959.1,0.001]
[1772419765097,5.36565798,1959.2,1958.2,0.0011]
[1772419765400,9.19359205,1959.6,1958.2,0.0011]
[1772419765401,5.36565798,1958.9,1958.2,0.0011]
[1772419765555,5.36565798,1958.7,1958.2,0.0011]
[1772419766566,5.36565798,1958.5,1958.2,0.0011]
[1772419766768,2.087,1958.4,1958.2,0.0011]
[1772419766968,7.45265798,1958.4,1958.2,0.0011]
[1772419767165,5.36565798,1958.3,1958.0,0.00263886]
[1772419767387,5.36565798,1958.3,1957.6,5.06512622]
[1772419767595,2.088,1958.2,1957.6,5.06512622]
[1772419767797,5.36565798,1958.5,1957.6,5.06512622]
[1772419767798,2.088,1958.1,1957.6,5.06512622]
[1772419768956,2.088,1958.1,1957.7,1.27700873]
[1772419769362,5.36565798,1958.4,1957.8,5.06512622]
[1772419769569,2.087,1958.3,1957.8,5.06512622]
[1772419770284,2.087,1958.7,1957.8,5.06512622]
[1772419771285,1.27642193,1958.6,1958.0,5.06512622]
[1772419771488,6.64207991,1958.6,1958.0,5.06512622]
[1772419771889,1.27638616,1958.7,1958.0,5.06512622]
[1772419772754,6.64204414,1958.7,1958.0,5.06512622]
[1772419772968,6.64204414,1958.7,1957.8,6.34202823]
[1772419773486,6.64204414,1958.7,1957.9,0.001]
[1772419773686,5.36565798,1958.4,1957.9,0.001]
[1772419773858,5.36565798,1958.2,1957.8,0.001]
[1772419774063,5.36565798,1958.2,1956.9,8.02627425]
[1772419774064,5.36565798,1958.1,1957.1,5.06512622]
[1772419774263,5.36565798,1957.8,1957.6,0.001]
[1772419774576,2.91639331,1957.9,1957.0,0.00153886]
[1772419774577,5.36565798,1957.6,1957.0,0.00153886]
[1772419775176,5.36565798,1957.5,1957.0,0.00153886]
[1772419775473,6.64286243,1957.4,1957.0,0.00153886]
[1772419775672,2.087,1957.3,1957.0,0.00153886]
[1772419775872,5.36565798,1957.2,1957.0,0.00153886]
[1772419776908,5.36565798,1957.2,1956.8,0.0011]
[1772419777575,3.36640665,1957.1,1956.8,0.0011]
[1772419778097,7.45565798,1957.2,1956.8,0.0011]
[1772419778690,2.091,1957.1,1956.8,0.0011]
[1772419780108,1.2772697,1957.3,1956.8,0.0011]
[1772419780409,2.091,1957.1,1956.8,0.0011]
[1772419780880,2.091,1957.3,1956.8,5.06622622]
[1772419781673,2.091,1957.3,1956.9,6.342657]
[1772419781884,2.091,1957.3,1957.0,5.06512622]
[1772419782498,1.2771417,1957.5,1957.0,5.06512622]
[1772419782696,2.091,1957.5,1957.0,5.06512622]
[1772419783404,3.36818133,1957.5,1957.0,5.06512622]
[1772419783893,3.36818133,1957.5,1956.9,5.06512622]
[1772419784094,8.73383931,1957.5,1956.9,5.06512622]
[1772419784310,5.36565798,1957.4,1956.8,1.27868231]
[1772419784479,2.091,1957.4,1956.9,5.06512622]
[1772419785975,1.27714951,1957.5,1956.9,6.34261925]
[1772419786275,2.093,1957.4,1956.9,6.34261925]
[1772419786481,2.093,1957.4,1957.0,0.0011]
[1772419787000,7.45865798,1957.4,1957.0,0.0011]
[1772419788097,1.27733496,1957.2,1957.0,0.0011]
[1772419788398,6.54270359,1957.2,1956.9,0.0011]
[1772419790607,5.26536863,1956.8,1956.5,0.0011]
[1772419790907,5.26536863,1956.6,1956.3,0.0011]
[1772419792347,6.5431606,1956.5,1956.3,0.0011]
[1772419792817,5.26536863,1956.3,1955.5,5.21659013]
[1772419793104,7.35736277,1956.1,1955.6,0.0033]
[1772419793521,5.26536863,1956.0,1955.6,0.0033]
[1772419793869,5.26536863,1955.8,1955.0,0.00153886]
[1772419794073,5.26536863,1955.6,1955.0,0.00153886]
[1772419794284,1.27844541,1955.5,1955.0,0.00153886]
[1772419794495,6.54381404,1955.5,1955.0,0.00153886]
[1772419795487,5.11301884,1955.8,1955.0,5.21812899]
[1772419795488,5.26536863,1955.8,1955.0,5.21812899]
[1772419795696,7.36836863,1955.7,1955.0,5.21812899]
[1772419795901,5.26536863,1955.6,1955.0,0.00153886]
[1772419796502,6.54381404,1955.5,1955.0,0.00153886]
[1772419797021,6.54381404,1955.5,1954.3,5.11689789]
[1772419797022,5.26536863,1955.2,1954.2,5.11714202]
[1772419797178,5.26536863,1955.0,1954.2,6.495886]
[1772419797508,5.26536863,1955.0,1954.1,1.2793199]
[1772419797712,5.26536863,1954.7,1954.0,0.00153886]
[1772419797878,2.105,1954.6,1954.0,6.49753327]
[1772419798075,5.26536863,1955.3,1954.0,6.49753327]
[1772419798307,1.27844541,1955.5,1954.2,5.21659013]
[1772419798308,5.26536863,1955.1,1954.2,5.21659013]
[1772419798529,6.544141,1955.0,1954.2,5.21659013]
[1772419798723,6.544141,1955.0,1954.0,1.28091417]
[1772419799029,1.27877237,1955.0,1954.1,5.21659013]
[1772419799221,2.105,1954.9,1954.1,5.21659013]
[1772419799583,5.26536863,1954.8,1954.1,5.21659013]
[1772419800115,2.107,1954.7,1954.1,5.21659013]
[1772419800517,3.38562473,1955.3,1954.5,5.21659013]
[1772419800884,8.65099336,1955.3,1954.5,5.21659013]
[1772419801091,1.2785613,1955.4,1954.5,5.21659013]
[1772419801286,5.26536863,1955.2,1954.5,5.21659013]
[1772419801710,5.26536863,1955.0,1954.3,5.21659013]
[1772419801891,5.26536863,1955.3,1954.3,5.21659013]
[1772419802088,2.108,1955.2,1954.4,5.21659013]
[1772419802392,2.108,1955.3,1954.6,5.21659013]
[1772419803096,2.109,1955.4,1954.6,5.21659013]
[1772419803295,7.37436863,1955.4,1954.5,1.27909951]
[1772419803495,5.26536863,1955.3,1954.5,6.49568964]
[1772419804290,5.26536863,1955.1,1954.1,5.21659013]
[1772419804522,1.27883779,1954.9,1954.1,6.49594131]
[1772419804728,2.11,1954.8,1954.1,6.49594131]
[1772419806110,2.11,1954.8,1954.1,6.49595091]
[1772419806520,1.27896863,1954.7,1954.1,6.49595091]
[1772419807122,18.02898966,1959.4,1954.1,6.49595091]
[1772419807123,1.27844541,1955.5,1954.6,5.21659013]
[1772419807425,3.38744541,1955.5,1954.6,5.21659013]
[1772419807591,8.65281404,1955.5,1954.6,5.21659013]
[1772419808023,2.11,1955.4,1954.6,5.21659013]
[1772419808890,1.27841774,1955.6,1954.7,6.49555876]
[1772419809091,2.109,1955.5,1954.7,6.49555876]
[1772419810295,7.37436863,1955.5,1954.7,6.49555876]
[1772419810605,5.26536863,1955.4,1954.5,10.33288687]
[1772419810793,1.27851079,1955.4,1954.7,1.27896863]
[1772419810990,1.27951079,1955.4,1954.7,1.27896863]
[1772419811407,1.27951079,1955.4,1954.7,6.49555876]
[1772419811408,2.109,1955.4,1954.7,6.49555876]
[1772419811822,0.001,1955.4,1954.8,4.8445277]
[1772419812802,0.001,1955.4,1954.9,1.27883779]
[1772419813023,0.001,1955.4,1954.9,6.12336549]
[1772419816000,0.001,1955.4,1954.6,6.12462222]
[1772419816001,4.70986721,1955.4,1954.6,6.12462222]
[1772419816200,4.70986721,1955.4,1954.7,4.8445277]
[1772419818300,4.89254933,1955.2,1954.6,0.0011]
[1772419818506,6.99554933,1955.1,1954.6,0.0011]
[1772419819008,6.99554933,1955.1,1954.6,1.28012776]
[1772419819509,6.99554933,1955.1,1954.6,0.0011]
[1772419820548,7.20729885,1955.4,1954.7,4.76394619]
[1772419820549,1.27955746,1955.4,1954.7,4.76394619]
[1772419820750,0.00153886,1956.0,1955.4,4.76394619]
[1772419820948,1.27968198,1956.0,1955.4,4.76394619]
[1772419821163,2.10553886,1956.0,1955.4,4.76394619]
[1772419821312,3.38367431,1956.0,1955.4,4.76394619]
[1772419821508,2.10553886,1956.0,1955.4,4.76394619]
[1772419822622,3.38366023,1956.0,1955.5,1.27844541]
[1772419823038,3.38366023,1956.0,1954.9,5.11520479]
[1772419823039,4.89254933,1955.9,1954.9,5.11520479]
[1772419823540,0.001,1955.0,1954.9,6.04278398]
[1772419823710,4.89254933,1955.7,1954.9,6.04278398]
[1772419823909,8.2642037,1956.0,1955.0,4.76394619]
[1772419824111,6.99554933,1955.9,1955.0,4.76394619]
[1772419824412,4.89254933,1955.8,1955.0,4.76394619]
[1772419825744,1.27831466,1955.7,1955.0,6.04270041]
[1772419826815,4.89254933,1955.6,1954.8,1.27885472]
[1772419827736,6.17099474,1955.5,1954.8,1.27885472]
[1772419828047,2.102,1955.4,1954.8,1.27885472]
[1772419828264,2.102,1955.4,1954.7,6.04396591]
[1772419828420,4.89254933,1955.3,1954.7,0.0011]
[1772419830260,4.89254933,1955.1,1954.7,0.0011]
[1772419832154,1.27883779,1954.9,1954.7,0.0011]
[1772419832829,1.27883779,1954.9,1954.6,0.0011]
[1772419832830,6.17138712,1954.9,1954.6,0.0011]
[1772419833034,6.17138712,1954.9,1954.3,0.0011]
[1772419833035,4.89254933,1954.6,1954.3,0.0011]
[1772419833213,1.27883779,1954.9,1954.0,0.00153886]
[1772419833214,4.89254933,1954.4,1954.0,0.00153886]
[1772419833416,6.99554933,1954.3,1954.0,0.00153886]
[1772419833619,6.99554933,1954.3,1953.1,2.09199414]
[1772419833620,4.89254933,1954.1,1953.4,0.0022]
[1772419833820,4.89254933,1954.1,1953.5,0.0022]
[1772419834139,2.105,1954.0,1953.2,4.76394619]
[1772419834340,2.105,1954.0,1953.3,0.0022]
[1772419834341,3.01349229,1953.9,1953.3,0.0022]
[1772419834846,6.17204162,1953.9,1953.3,0.0022]
[1772419835151,2.104,1953.8,1953.3,0.0022]
[1772419835521,2.105,1953.7,1953.5,0.0011]
[1772419836235,1.27968877,1953.6,1953.5,0.0011]
[1772419836441,4.89254933,1954.0,1953.5,0.0022]
[1772419836647,2.105,1953.9,1953.5,4.76614619]
[1772419836841,2.105,1953.9,1953.6,0.0011]
[1772419837872,5.11668013,1954.4,1953.5,0.0011]
[1772419837873,3.38526022,1954.3,1953.5,0.0011]
[1772419838172,4.89254933,1954.2,1953.6,0.0022]
[1772419838382,4.89254933,1954.0,1953.6,0.0022]
[1772419838870,2.106,1953.9,1953.6,0.0022]
[1772419839029,6.99854933,1953.9,1953.5,0.0011]
[1772419839241,1.27936134,1954.1,1953.5,0.0033]
[1772419839564,4.89254933,1953.9,1953.5,0.0033]
[1772419840656,3.38655778,1953.8,1953.5,0.0033]
[1772419840958,8.27910711,1953.8,1953.4,0.0011]
[1772419841168,2.108,1953.7,1953.4,0.0011]
[1772419842446,2.108,1953.6,1953.4,0.0011]
[1772419843767,4.89254933,1954.0,1953.4,0.0011]
[1772419843971,2.15753014,1954.8,1953.4,4.76504619]
[1772419844277,2.80596863,1954.7,1953.7,4.76394619]
[1772419844753,2.80596863,1954.7,1953.9,4.76394619]
[1772419844953,2.09199414,1954.0,1953.4,0.0011]
[1772419845140,6.56354933,1954.2,1953.4,6.04484512]
[1772419845587,7.00554933,1954.2,1953.4,6.04484512]
[1772419845757,2.113,1954.2,1953.5,4.76394619]
[1772419846273,2.113,1954.2,1953.4,6.04485817]
[1772419846274,7.00554933,1954.2,1953.4,6.04485817]
[1772419846449,4.89254933,1954.1,1953.4,0.0011]
[1772419847471,1.27942681,1954.0,1953.4,0.0011]
[1772419847979,1.28042681,1954.0,1953.4,0.0011]
[1772419848157,6.47495227,1954.0,1953.4,0.0011]
[1772419851694,1.2804316,1954.0,1953.4,5.23467085]
[1772419852891,6.47495706,1954.0,1953.4,0.0011]
[1772419853273,6.47495706,1954.0,1953.4,5.23467085]
[1772419853473,0.001,1954.0,1953.4,5.23467085]
[1772419853795,3.39320833,1954.4,1953.6,5.23357085]
[1772419854166,6.47367779,1954.5,1953.6,5.23357085]
[1772419854593,8.58767779,1954.5,1953.6,5.23357085]
[1772419854793,5.19452546,1954.7,1953.6,2.93440068]
[1772419855001,5.19452546,1954.7,1953.7,5.23357085]
[1772419855659,1.27903407,1954.6,1954.0,5.23357085]
[1772419857904,5.19452546,1954.5,1953.8,1.27955778]
[1772419858769,5.19452546,1954.5,1953.8,6.51312863]
[1772419859917,1.27916496,1954.4,1953.8,6.51312863]
[1772419860095,6.47367629,1954.5,1953.8,6.51312863]
[1772419860468,5.19452546,1954.4,1953.6,6.51325135]
[1772419861169,7.30752546,1954.4,1953.6,6.51325135]
[1772419861979,6.47375587,1954.3,1953.6,6.51325135]
[1772419863301,6.47375587,1954.3,1953.6,5.23357085]
[1772419863464,6.47375587,1954.3,1953.6,1.27964685]
[1772419864094,6.47375587,1954.3,1953.5,10.3536448]
[1772419864298,6.47375587,1954.3,1953.5,5.12007395]
[1772419864598,1.28014745,1954.5,1953.7,5.23357085]
[1772419864785,1.28011366,1954.5,1953.7,5.23357085]
[1772419865193,0.001,1954.5,1953.7,5.23357085]
[1772419865392,1.28010839,1954.5,1953.7,5.23357085]
[1772419866105,0.001,1954.5,1953.7,5.23357085]
[1772419866404,5.19552546,1954.5,1953.8,6.51312863]
[1772419866788,5.19552546,1954.5,1953.9,5.23357085]
[1772419866970,0.001,1954.5,1953.9,5.23357085]
[1772419867904,5.19452546,1954.9,1954.0,5.23357085]
[1772419868212,1.28131354,1955.0,1954.0,5.23357085]
[1772419868416,1.28131354,1955.0,1954.2,5.23357085]
[1772419868713,1.28131354,1955.0,1954.3,5.23357085]
[1772419869207,6.475839,1955.0,1954.3,5.23357085]
[1772419869409,0.00253886,1955.0,1954.3,5.23357085]
[1772419870503,5.19452546,1955.7,1954.6,5.23357085]
[1772419870674,5.19452546,1955.7,1954.8,5.23357085]
[1772419872510,5.19452546,1955.7,1955.0,5.09390557]
[1772419872698,6.47284758,1955.7,1955.0,5.09390557]
[1772419873103,0.001,1955.6,1955.0,5.09390557]
[1772419874595,0.001,1955.6,1955.1,1.27870697]
[1772419877003,5.07525447,1955.6,1955.0,1.27872477]
[1772419877201,5.07525447,1955.6,1954.9,5.11521871]
[1772419877202,5.07525447,1955.6,1954.9,3.06179477]
[1772419878915,5.07425447,1955.4,1954.8,6.24846989]
[1772419879509,6.35367608,1955.6,1954.9,4.96956736]
[1772419880006,5.07425447,1955.5,1954.9,4.96956736]
[1772419881002,1.27851079,1955.4,1954.9,6.2483658]
[1772419881198,1.27851079,1955.4,1954.9,6.24840398]
[1772419881399,0.001,1955.6,1955.0,4.96956736]
[1772419881602,0.001,1955.6,1955.1,4.96956736]
[1772419883919,0.001,1955.6,1954.6,2.93440068]
[1772419883920,5.07525447,1955.6,1954.8,1.784]
[1772419884520,5.07525447,1955.6,1954.8,6.75356736]
[1772419884815,5.07525447,1955.6,1955.0,0.0011]
[1772419885020,0.001,1955.5,1955.0,4.97066736]
[1772419885934,0.001,1955.5,1955.1,1.27870697]
[1772419887233,0.001,1955.5,1955.1,6.24827433]
[1772419888610,5.07425447,1956.2,1955.5,4.96956736]
[1772419889027,5.07425447,1956.2,1955.6,6.75656736]
[1772419889227,1.27795407,1956.3,1955.7,4.96956736]
[1772419889401,1.27799601,1956.2,1955.7,4.96956736]
[1772419889602,1.27805583,1956.1,1955.7,4.96956736]
[1772419889902,6.35220412,1956.3,1955.7,4.96956736]
[1772419890126,6.35218711,1956.3,1955.7,4.96956736]
[1772419890429,6.35218711,1956.3,1955.8,1.2782493]
[1772419890632,5.07425447,1956.3,1955.8,1.2782493]
[1772419890932,5.07425447,1956.5,1955.9,4.96956736]
[1772419891727,5.07425447,1956.8,1955.9,4.96956736]
[1772419892104,5.07425447,1956.8,1955.8,1.2782493]
[1772419892640,5.07425447,1956.3,1955.2,1.787]
[1772419892805,5.07425447,1956.6,1955.7,4.96956736]
[1772419893006,5.07425447,1956.6,1955.8,1.788]
[1772419893756,5.07425447,1956.5,1955.6,1.594]
[1772419894623,5.07425447,1956.3,1955.6,2.87233255]
[1772419894954,5.07425447,1956.3,1955.6,2.8723775]
[1772419895158,5.07425447,1956.3,1955.6,1.594]
[1772419895333,5.07425447,1956.3,1955.1,1.2786972]
[1772419895758,5.07425447,1956.3,1955.0,7.79894506]
[1772419896057,5.07425447,1956.3,1955.0,8.03797684]
[1772419896242,2.93440068,1956.1,1955.0,8.03797684]
[1772419896418,5.07425447,1955.9,1955.0,8.03797684]
[1772419896619,5.07425447,1955.7,1955.0,1.78963886]
[1772419897960,5.07425447,1955.7,1955.5,0.0011]
[1772419899130,5.07425447,1955.6,1955.4,0.0011]
[1772419901232,6.35269988,1955.5,1955.4,0.0011]
[1772419901432,5.07425447,1955.4,1955.0,0.00263886]
[1772419902871,2.106,1955.3,1955.0,0.00263886]
[1772419903634,1.27864157,1955.2,1955.0,0.00263886]
[1772419905842,2.109,1955.4,1955.0,0.00263886]
[1772419906073,3.38754352,1955.4,1955.0,0.00263886]
[1772419907645,8.10507735,1955.4,1955.0,0.00263886]
[1772419909369,4.71753383,1955.3,1955.0,0.00263886]
[1772419910382,3.38756545,1955.4,1955.1,0.0011]
[1772419910548,8.10509928,1955.4,1955.1,0.0011]
[1772419911292,4.71753383,1955.3,1955.0,0.00263886]
[1772419912275,4.71753383,1955.1,1955.0,0.00263886]
[1772419912523,6.83353383,1955.1,1955.0,0.00263886]
[1772419913167,5.11415559,1955.4,1955.0,0.00263886]
[1772419913372,1.27851079,1955.4,1955.0,0.00263886]
[1772419917557,4.71753383,1955.7,1955.0,4.72358125]
[1772419917881,5.9959044,1955.7,1955.0,4.72358125]
[1772419918288,4.71753383,1955.7,1955.0,4.72358125]
[1772419918451,5.99585976,1955.7,1955.0,4.72358125]
[1772419918657,4.71753383,1955.7,1955.2,4.72094239]
[1772419918866,5.99574353,1955.9,1955.2,4.72094239]
[1772419919090,1.27815883,1956.0,1955.2,4.72094239]
[1772419919291,5.99569266,1956.0,1955.2,4.72094239]
[1772419920696,4.71753383,1956.0,1955.3,5.99951856]
[1772419920871,5.99567514,1956.0,1955.4,4.72094239]
[1772419921292,4.71753383,1956.0,1955.4,4.72094239]
[1772419921488,5.99565414,1956.0,1955.4,4.72094239]
[1772419921984,1.27809777,1956.1,1955.4,4.72094239]
[1772419922290,5.99556175,1956.2,1955.4,4.72094239]
[1772419922501,4.71753383,1956.1,1955.4,4.72094239]
[1772419922872,0.001,1955.9,1955.5,1.27844541]
[1772419923471,0.001,1955.9,1955.5,5.9993878]
[1772419923840,0.001,1955.9,1955.6,4.72094239]
[1772419924122,5.99548434,1956.3,1955.6,4.72094239]
[1772419924507,4.71753383,1956.3,1955.6,4.72094239]
[1772419924905,3.40089959,1956.4,1955.8,4.72094239]
[1772419926407,4.71753383,1956.3,1955.7,1.27831466]
[1772419926912,4.71753383,1956.3,1955.6,5.11325867]
[1772419926913,4.71753383,1956.2,1955.6,5.11325867]
[1772419927403,4.71753383,1956.2,1955.6,9.83420106]